[Event "Late-Titled-Tuesday-Blitz-October-10-2023"]
[Site "Chess.com"]
[Date "2023.10.10"]
[Round "2"]
[White "LoaySameer"]
[Black "Alexander_Donchenko"]
[Result "0-1"]
[WhiteElo "2556"]
[BlackElo "2864"]
[TimeControl "180+1"]
[EndTime "14:16:20 PDT"]
[Termination "Alexander_Donchenko won by resignation"]

1. Nf3 {[%clk 0:03:00.9]} 1... Nf6 {[%clk 0:02:59.3]} 2. g3 {[%clk 0:03:01.5]}
2... b5 {[%clk 0:02:59.4]} 3. Bg2 {[%clk 0:03:02]} 3... Bb7 {[%clk 0:03:00]} 4.
O-O {[%clk 0:03:02.6]} 4... e6 {[%clk 0:03:00.5]} 5. d3 {[%clk 0:03:03.1]} 5...
c5 {[%clk 0:03:00.2]} 6. e4 {[%clk 0:03:03.4]} 6... d6 {[%clk 0:03:00.6]} 7. c3
{[%clk 0:03:03.4]} 7... Nbd7 {[%clk 0:03:00]} 8. Re1 {[%clk 0:03:03.8]} 8... Be7
{[%clk 0:03:00.2]} 9. Nbd2 {[%clk 0:03:04.3]} 9... O-O {[%clk 0:03:00]} 10. a4
{[%clk 0:03:04.8]} 10... a6 {[%clk 0:02:59.7]} 11. Qb3 {[%clk 0:03:04.9]} 11...
Bc6 {[%clk 0:02:58.9]} 12. d4 {[%clk 0:03:02.5]} 12... bxa4 {[%clk 0:02:58.1]}
13. Qc2 {[%clk 0:03:02.8]} 13... Qc7 {[%clk 0:02:53.2]} 14. e5 {[%clk
0:02:14.5]} 14... dxe5 {[%clk 0:02:52.6]} 15. dxe5 {[%clk 0:02:14.2]} 15... Nd5
{[%clk 0:02:52.1]} 16. Nc4 {[%clk 0:02:14.4]} 16... Rfd8 {[%clk 0:02:50.8]} 17.
h4 {[%clk 0:02:14.1]} 17... Nf8 {[%clk 0:02:50.1]} 18. h5 {[%clk 0:02:13.6]}
18... h6 {[%clk 0:02:50.3]} 19. Nfd2 {[%clk 0:02:05.2]} 19... Nb6 {[%clk
0:02:46.6]} 20. Nxb6 {[%clk 0:02:02.9]} 20... Bxg2 {[%clk 0:02:44.4]} 21. Kxg2
{[%clk 0:01:56.5]} 21... Qxb6 {[%clk 0:02:44.1]} 22. Rxa4 {[%clk 0:01:56.7]}
22... Bg5 {[%clk 0:02:28.4]} 23. Nc4 {[%clk 0:01:54.8]} 23... Qc6+ {[%clk
0:02:27.9]} 24. Kg1 {[%clk 0:01:55.3]} 24... Bxc1 {[%clk 0:02:27.1]} 25. Rxc1
{[%clk 0:01:55.4]} 25... Qf3 {[%clk 0:02:25.6]} 26. Nd6 {[%clk 0:01:50.4]} 26...
Qxh5 {[%clk 0:02:23.7]} 27. Qe4 {[%clk 0:01:50.1]} 27... Ng6 {[%clk 0:02:21.9]}
28. Re1 {[%clk 0:01:42.6]} 28... Qxe5 {[%clk 0:02:17.3]} 29. Qxe5 {[%clk
0:01:39.7]} 29... Nxe5 {[%clk 0:02:18.2]} 30. Rxe5 {[%clk 0:01:39.4]} 30... Rxd6
{[%clk 0:02:18.8]} 31. Rxc5 {[%clk 0:01:40.3]} 31... Rd2 {[%clk 0:02:10.1]} 32.
b4 {[%clk 0:01:38.7]} 32... Rb2 {[%clk 0:02:06.8]} 33. b5 {[%clk 0:01:19.3]}
33... a5 {[%clk 0:02:06.4]} 34. c4 {[%clk 0:00:48.3]} 34... Rd8 {[%clk
0:02:04.9]} 35. Ra3 {[%clk 0:00:48.8]} 35... Rdd2 {[%clk 0:01:53.5]} 36. Rf3
{[%clk 0:00:48.6]} 36... a4 {[%clk 0:01:54.2]} 37. Rc8+ {[%clk 0:00:49.2]} 37...
Kh7 {[%clk 0:01:54.1]} 38. Ra8 {[%clk 0:00:49.9]} 38... f5 {[%clk 0:01:35.2]}
39. Rxa4 {[%clk 0:00:47]} 39... Rdc2 {[%clk 0:01:35.1]} 40. g4 {[%clk
0:00:18.4]} 40... fxg4 {[%clk 0:01:33.3]} 41. Rf7 {[%clk 0:00:19]} 41... g3
{[%clk 0:01:27.8]} 42. fxg3 {[%clk 0:00:12.5]} 42... Kg6 {[%clk 0:01:27.8]} 43.
Rf4 {[%clk 0:00:11.6]} 43... e5 {[%clk 0:01:26.2]} 44. Rf1 {[%clk 0:00:10.8]}
44... Rg2+ {[%clk 0:01:24.9]} 0-1

[Event "Late-Titled-Tuesday-Blitz-October-10-2023"]
[Site "Chess.com"]
[Date "2023.10.10"]
[Round "2"]
[White "ArtemDyachuk"]
[Black "Oleksandr_Bortnyk"]
[Result "0-1"]
[WhiteElo "2635"]
[BlackElo "3051"]
[TimeControl "180+1"]
[EndTime "14:16:23 PDT"]
[Termination "Oleksandr_Bortnyk won by checkmate"]

1. e4 {[%clk 0:03:00.9]} 1... g6 {[%clk 0:02:53.7]} 2. d4 {[%clk 0:03:00.1]}
2... Bg7 {[%clk 0:02:54.3]} 3. Nc3 {[%clk 0:02:59.8]} 3... a6 {[%clk 0:02:54.9]}
4. h4 {[%clk 0:02:57]} 4... h5 {[%clk 0:02:51.9]} 5. Nf3 {[%clk 0:02:56.3]} 5...
b5 {[%clk 0:02:52]} 6. Be3 {[%clk 0:02:50.2]} 6... Bb7 {[%clk 0:02:52.3]} 7. Bd3
{[%clk 0:02:50]} 7... Nf6 {[%clk 0:02:49.4]} 8. e5 {[%clk 0:02:40.9]} 8... Ng4
{[%clk 0:02:47.6]} 9. Bf4 {[%clk 0:02:41.1]} 9... c5 {[%clk 0:02:38.9]} 10. dxc5
{[%clk 0:02:23.9]} 10... Qc7 {[%clk 0:02:39.1]} 11. Qd2 {[%clk 0:02:14.7]} 11...
Qxc5 {[%clk 0:02:37.6]} 12. a4 {[%clk 0:02:08.8]} 12... Bxf3 {[%clk 0:02:29.6]}
13. gxf3 {[%clk 0:02:07.8]} 13... Nxe5 {[%clk 0:02:30.5]} 14. Be4 {[%clk
0:02:07.8]} 14... Nc4 {[%clk 0:02:20.4]} 15. Qe2 {[%clk 0:02:01.6]} 15... Nc6
{[%clk 0:01:45.6]} 16. axb5 {[%clk 0:01:26.6]} 16... Nd4 {[%clk 0:01:41.7]} 17.
Qd1 {[%clk 0:00:36.7]} 17... Nxb2 {[%clk 0:01:39.7]} 18. Na4 {[%clk 0:00:36.9]}
18... Nxa4 {[%clk 0:01:14.2]} 19. Rxa4 {[%clk 0:00:37.8]} 19... d5 {[%clk
0:01:04.4]} 20. Bd3 {[%clk 0:00:21.5]} 20... Nxb5 {[%clk 0:01:04.4]} 21. Be3
{[%clk 0:00:12.8]} 21... Qc6 {[%clk 0:01:02]} 22. Bd2 {[%clk 0:00:01.8]} 22...
Nc3 {[%clk 0:01:00.6]} 23. Bxc3 {[%clk 0:00:02.1]} 23... Bxc3+ {[%clk
0:01:01.5]} 24. Ke2 {[%clk 0:00:02]} 24... Qxa4 {[%clk 0:01:01.9]} 25. Qb1
{[%clk 0:00:02.4]} 25... O-O {[%clk 0:01:00.5]} 26. Bxg6 {[%clk 0:00:01.7]}
26... fxg6 {[%clk 0:00:59.8]} 27. Rg1 {[%clk 0:00:02.6]} 27... Qc4+ {[%clk
0:00:59.1]} 28. Kd1 {[%clk 0:00:03]} 28... Rf6 {[%clk 0:00:57.4]} 29. Qb8+
{[%clk 0:00:01.8]} 29... Rxb8 {[%clk 0:00:57.5]} 30. Rxg6+ {[%clk 0:00:02.4]}
30... Rxg6 {[%clk 0:00:56.9]} 31. f4 {[%clk 0:00:03.3]} 31... Rg1# {[%clk
0:00:57.3]} 0-1

[Event "Late-Titled-Tuesday-Blitz-October-10-2023"]
[Site "Chess.com"]
[Date "2023.10.10"]
[Round "2"]
[White "Roberz12"]
[Black "ameetghasi100"]
[Result "0-1"]
[WhiteElo "2437"]
[BlackElo "2729"]
[TimeControl "180+1"]
[EndTime "14:16:23 PDT"]
[Termination "ameetghasi100 won by resignation"]

1. d3 {[%clk 0:02:59.4]} 1... g6 {[%clk 0:03:00.6]} 2. g3 {[%clk 0:02:59]} 2...
Nf6 {[%clk 0:02:59.6]} 3. Bg2 {[%clk 0:02:59.9]} 3... Bg7 {[%clk 0:03:00]} 4.
Nf3 {[%clk 0:03:00.1]} 4... O-O {[%clk 0:03:00.5]} 5. O-O {[%clk 0:03:00.8]}
5... d6 {[%clk 0:03:01.4]} 6. c4 {[%clk 0:03:01]} 6... e5 {[%clk 0:03:00.9]} 7.
Nc3 {[%clk 0:03:00.9]} 7... Nc6 {[%clk 0:02:54.3]} 8. Rb1 {[%clk 0:03:00.7]}
8... Bf5 {[%clk 0:02:50.4]} 9. b4 {[%clk 0:02:59.2]} 9... Re8 {[%clk 0:02:50.6]}
10. e4 {[%clk 0:02:56.5]} 10... Bg4 {[%clk 0:02:50.1]} 11. Ne2 {[%clk
0:02:56.7]} 11... Qd7 {[%clk 0:02:46.3]} 12. b5 {[%clk 0:02:56.3]} 12... Nd8
{[%clk 0:02:46.3]} 13. Be3 {[%clk 0:02:53.8]} 13... a6 {[%clk 0:02:27.9]} 14. a4
{[%clk 0:02:51.2]} 14... axb5 {[%clk 0:02:27.9]} 15. Rxb5 {[%clk 0:02:52.1]}
15... Bh3 {[%clk 0:02:11.5]} 16. Nc3 {[%clk 0:02:47.1]} 16... Bxg2 {[%clk
0:02:02.4]} 17. Kxg2 {[%clk 0:02:48]} 17... Ng4 {[%clk 0:02:02.1]} 18. c5 {[%clk
0:02:45.1]} 18... c6 {[%clk 0:01:57.1]} 19. Rb3 {[%clk 0:02:35.3]} 19... Nxe3+
{[%clk 0:01:54.1]} 20. fxe3 {[%clk 0:02:36.2]} 20... dxc5 {[%clk 0:01:53.7]} 21.
Qe2 {[%clk 0:02:26.5]} 21... Ne6 {[%clk 0:01:52]} 22. Nd2 {[%clk 0:02:24.9]}
22... Red8 {[%clk 0:01:45.2]} 23. Qf2 {[%clk 0:01:13.2]} 23... f6 {[%clk
0:01:35.3]} 24. Ne2 {[%clk 0:01:04.8]} 24... Rxa4 {[%clk 0:01:33.5]} 25. Nc4
{[%clk 0:01:05.4]} 25... Rb4 {[%clk 0:01:33.7]} 26. Rfb1 {[%clk 0:00:49.5]}
26... b5 {[%clk 0:01:22.7]} 27. Nd2 {[%clk 0:00:48.7]} 27... Rxb3 {[%clk
0:01:12.6]} 28. Rxb3 {[%clk 0:00:48.8]} 28... c4 {[%clk 0:01:12.5]} 29. dxc4
{[%clk 0:00:22.2]} 29... Nc5 {[%clk 0:00:59.9]} 30. cxb5 {[%clk 0:00:14.5]}
30... Qxd2 {[%clk 0:00:59.1]} 31. Rc3 {[%clk 0:00:14.5]} 31... Nxe4 {[%clk
0:00:58.5]} 32. Qf3 {[%clk 0:00:13.7]} 32... Nxc3 {[%clk 0:00:58.4]} 0-1

[Event "Late-Titled-Tuesday-Blitz-October-10-2023"]
[Site "Chess.com"]
[Date "2023.10.10"]
[Round "2"]
[White "Polish_fighter3000"]
[Black "Lion-Al-Messi"]
[Result "1-0"]
[WhiteElo "3052"]
[BlackElo "2636"]
[TimeControl "180+1"]
[EndTime "14:16:27 PDT"]
[Termination "Polish_fighter3000 won by resignation"]

1. c4 {[%clk 0:03:00.9]} 1... c5 {[%clk 0:02:59.3]} 2. g3 {[%clk 0:02:59.8]}
2... Nc6 {[%clk 0:02:58.9]} 3. Bg2 {[%clk 0:02:59.9]} 3... g6 {[%clk 0:02:58.9]}
4. Nf3 {[%clk 0:02:57.6]} 4... Bg7 {[%clk 0:02:59]} 5. O-O {[%clk 0:02:57.9]}
5... e5 {[%clk 0:02:58.2]} 6. Nc3 {[%clk 0:02:57.5]} 6... Nge7 {[%clk
0:02:58.2]} 7. a3 {[%clk 0:02:48.6]} 7... a5 {[%clk 0:02:55.1]} 8. Ne1 {[%clk
0:02:45.3]} 8... O-O {[%clk 0:02:54]} 9. Nc2 {[%clk 0:02:45.2]} 9... d6 {[%clk
0:02:52.2]} 10. d3 {[%clk 0:02:42.8]} 10... Be6 {[%clk 0:02:51]} 11. Ne3 {[%clk
0:02:41.5]} 11... f5 {[%clk 0:02:49.3]} 12. Rb1 {[%clk 0:02:40.6]} 12... h6
{[%clk 0:02:45.9]} 13. Ned5 {[%clk 0:02:39.8]} 13... Kh7 {[%clk 0:02:45]} 14. b4
{[%clk 0:02:39.3]} 14... axb4 {[%clk 0:02:42.2]} 15. axb4 {[%clk 0:02:40.2]}
15... Bxd5 {[%clk 0:02:38.4]} 16. Nxd5 {[%clk 0:02:37.7]} 16... Nxd5 {[%clk
0:02:38.2]} 17. Bxd5 {[%clk 0:02:38.6]} 17... cxb4 {[%clk 0:02:35.4]} 18. Bd2
{[%clk 0:02:38.5]} 18... Ra7 {[%clk 0:01:56.5]} 19. Bxb4 {[%clk 0:02:36.1]}
19... Nxb4 {[%clk 0:01:57.4]} 20. Rxb4 {[%clk 0:02:36.5]} 20... Qc7 {[%clk
0:01:56.2]} 21. e3 {[%clk 0:02:31.5]} 21... Rb8 {[%clk 0:01:53.7]} 22. h4 {[%clk
0:02:24.2]} 22... h5 {[%clk 0:01:38.1]} 23. Qf3 {[%clk 0:02:20.4]} 23... Ra3
{[%clk 0:01:29.6]} 24. Qe2 {[%clk 0:02:04.4]} 24... b6 {[%clk 0:01:12.9]} 25.
Rfb1 {[%clk 0:02:03.7]} 25... Qa7 {[%clk 0:01:11.7]} 26. R4b2 {[%clk 0:01:59.4]}
26... Qa5 {[%clk 0:01:05.3]} 27. Kg2 {[%clk 0:01:58.7]} 27... Ra4 {[%clk
0:01:03.5]} 28. Rb5 {[%clk 0:01:32.4]} 28... Qa7 {[%clk 0:01:03.2]} 29. Qb2
{[%clk 0:01:31]} 29... Ra2 {[%clk 0:01:02]} 30. Qb4 {[%clk 0:01:30.5]} 30... f4
{[%clk 0:00:30.1]} 31. exf4 {[%clk 0:01:16.6]} 31... exf4 {[%clk 0:00:31]} 32.
Qxd6 {[%clk 0:01:14.1]} 32... fxg3 {[%clk 0:00:24.9]} 33. Be4 {[%clk 0:01:13.3]}
33... Qf7 {[%clk 0:00:22.5]} 34. Rxh5+ {[%clk 0:00:59.7]} 34... Kg8 {[%clk
0:00:21]} 35. Qxb8+ {[%clk 0:00:58.5]} 1-0

[Event "Late-Titled-Tuesday-Blitz-October-10-2023"]
[Site "Chess.com"]
[Date "2023.10.10"]
[Round "2"]
[White "cassoulet"]
[Black "slorovel"]
[Result "1-0"]
[WhiteElo "2755"]
[BlackElo "2503"]
[TimeControl "180+1"]
[EndTime "14:16:29 PDT"]
[Termination "cassoulet won by resignation"]

1. d4 {[%clk 0:03:00.9]} 1... Nf6 {[%clk 0:02:59.7]} 2. Bg5 {[%clk 0:03:00.4]}
2... Ne4 {[%clk 0:02:59.5]} 3. Bf4 {[%clk 0:02:59.7]} 3... d5 {[%clk 0:02:59.2]}
4. Nd2 {[%clk 0:03:00]} 4... Nxd2 {[%clk 0:02:59.2]} 5. Qxd2 {[%clk 0:03:00]}
5... Bf5 {[%clk 0:02:59.9]} 6. Nf3 {[%clk 0:02:59.2]} 6... e6 {[%clk 0:02:59.9]}
7. e3 {[%clk 0:02:59.5]} 7... Bd6 {[%clk 0:02:59.1]} 8. Bg3 {[%clk 0:02:59.2]}
8... Nc6 {[%clk 0:02:56.8]} 9. Bb5 {[%clk 0:02:57.6]} 9... O-O {[%clk
0:02:55.1]} 10. O-O {[%clk 0:02:55.6]} 10... Ne7 {[%clk 0:02:51.1]} 11. Bd3
{[%clk 0:02:53.3]} 11... Bg4 {[%clk 0:02:48.7]} 12. Ne5 {[%clk 0:02:52]} 12...
Bxe5 {[%clk 0:02:48.6]} 13. Bxe5 {[%clk 0:02:49.6]} 13... Bf5 {[%clk 0:02:48.5]}
14. Be2 {[%clk 0:02:40.7]} 14... f6 {[%clk 0:02:44.9]} 15. Bg3 {[%clk
0:02:40.4]} 15... c5 {[%clk 0:02:44.8]} 16. dxc5 {[%clk 0:02:38.8]} 16... e5
{[%clk 0:02:41.9]} 17. c4 {[%clk 0:02:38.3]} 17... d4 {[%clk 0:02:41.8]} 18.
exd4 {[%clk 0:02:38]} 18... exd4 {[%clk 0:02:42.1]} 19. Bd6 {[%clk 0:02:35]}
19... Re8 {[%clk 0:02:41.5]} 20. Qxd4 {[%clk 0:02:30.6]} 20... Nc6 {[%clk
0:02:37.9]} 21. Qd5+ {[%clk 0:02:27.3]} 21... Be6 {[%clk 0:02:37.1]} 22. Qd2
{[%clk 0:02:27]} 22... b6 {[%clk 0:02:31.4]} 23. Rad1 {[%clk 0:02:23.9]} 23...
bxc5 {[%clk 0:02:30.5]} 24. Bf3 {[%clk 0:02:21.1]} 24... Nd4 {[%clk 0:02:21]}
25. Bxa8 {[%clk 0:02:18.7]} 25... Qxd6 {[%clk 0:02:21.2]} 26. Bd5 {[%clk
0:02:08.6]} 26... Bxd5 {[%clk 0:02:14.9]} 27. cxd5 {[%clk 0:02:09.5]} 27... Qxd5
{[%clk 0:02:13.7]} 28. Rfe1 {[%clk 0:02:09.9]} 28... Rd8 {[%clk 0:01:48.7]} 29.
Qe3 {[%clk 0:01:59.9]} 29... h5 {[%clk 0:01:43.1]} 30. h3 {[%clk 0:01:57.3]}
30... Qxa2 {[%clk 0:01:40.7]} 31. b4 {[%clk 0:01:44.1]} 31... Rf8 {[%clk
0:00:55.8]} 32. bxc5 {[%clk 0:01:36.5]} 32... Nc2 {[%clk 0:00:55.8]} 33. Qe6+
{[%clk 0:01:36.2]} 33... Qxe6 {[%clk 0:00:54.7]} 34. Rxe6 {[%clk 0:01:37.1]}
34... Rc8 {[%clk 0:00:54.6]} 35. c6 {[%clk 0:01:29.4]} 35... Nb4 {[%clk
0:00:54.3]} 36. Rc1 {[%clk 0:01:26.3]} 36... a5 {[%clk 0:00:44.6]} 37. c7 {[%clk
0:01:25.7]} 37... Nd5 {[%clk 0:00:44.8]} 38. Rec6 {[%clk 0:01:20]} 38... Kf7
{[%clk 0:00:40.7]} 39. Rd1 {[%clk 0:01:19.9]} 39... Ne7 {[%clk 0:00:34.7]} 40.
Rd8 {[%clk 0:01:18.6]} 40... a4 {[%clk 0:00:29.3]} 41. Rxc8 {[%clk 0:01:17.5]}
41... Nxc8 {[%clk 0:00:29.1]} 42. Ra6 {[%clk 0:01:18.1]} 42... Ke7 {[%clk
0:00:29.3]} 43. Rxa4 {[%clk 0:01:18.1]} 43... Kd7 {[%clk 0:00:30.2]} 44. Ra5
{[%clk 0:01:15.3]} 44... g6 {[%clk 0:00:29.5]} 45. Ra6 {[%clk 0:01:15.2]} 45...
Kxc7 {[%clk 0:00:28.9]} 46. Rxf6 {[%clk 0:01:15]} 46... Ne7 {[%clk 0:00:29.8]}
47. h4 {[%clk 0:01:13.8]} 47... Kd7 {[%clk 0:00:29.8]} 48. Kh2 {[%clk 0:01:14]}
48... Ke8 {[%clk 0:00:29.4]} 49. Kg3 {[%clk 0:01:12.4]} 49... Nf5+ {[%clk
0:00:28.5]} 50. Rxf5 {[%clk 0:01:12.8]} 50... gxf5 {[%clk 0:00:28.6]} 51. Kf4
{[%clk 0:01:13.7]} 1-0

[Event "Late-Titled-Tuesday-Blitz-October-10-2023"]
[Site "Chess.com"]
[Date "2023.10.10"]
[Round "2"]
[White "maksimys18"]
[Black "cottage_cheese"]
[Result "1-0"]
[WhiteElo "2524"]
[BlackElo "2318"]
[TimeControl "180+1"]
[EndTime "14:16:31 PDT"]
[Termination "maksimys18 won by checkmate"]

1. d4 {[%clk 0:02:59.3]} 1... e5 {[%clk 0:03:00.9]} 2. dxe5 {[%clk 0:02:58.7]}
2... Nc6 {[%clk 0:02:51.7]} 3. Nf3 {[%clk 0:02:58.1]} 3... Bc5 {[%clk
0:02:44.8]} 4. Bg5 {[%clk 0:02:55.9]} 4... f6 {[%clk 0:02:39.4]} 5. exf6 {[%clk
0:02:55.6]} 5... Nxf6 {[%clk 0:02:40.3]} 6. e3 {[%clk 0:02:55]} 6... O-O {[%clk
0:02:37.8]} 7. Bc4+ {[%clk 0:02:54.3]} 7... Kh8 {[%clk 0:02:36]} 8. O-O {[%clk
0:02:52]} 8... d6 {[%clk 0:02:33.5]} 9. Nc3 {[%clk 0:02:51.4]} 9... Bg4 {[%clk
0:02:32.9]} 10. Ne4 {[%clk 0:02:42.1]} 10... Ne5 {[%clk 0:01:55.4]} 11. Be2
{[%clk 0:02:34.7]} 11... Qe8 {[%clk 0:01:39.8]} 12. Nxc5 {[%clk 0:02:22.7]}
12... dxc5 {[%clk 0:01:34.8]} 13. Nxe5 {[%clk 0:02:22.1]} 13... Bxe2 {[%clk
0:01:34]} 14. Qxe2 {[%clk 0:02:21.5]} 14... Qxe5 {[%clk 0:01:34.1]} 15. Bf4
{[%clk 0:02:18.7]} 15... Qxb2 {[%clk 0:01:22.8]} 16. Rab1 {[%clk 0:02:18.4]}
16... Qxa2 {[%clk 0:01:19]} 17. Rxb7 {[%clk 0:02:17.9]} 17... Nd5 {[%clk
0:01:08.7]} 18. Be5 {[%clk 0:02:12.6]} 18... Rae8 {[%clk 0:00:39.6]} 19. Ba1
{[%clk 0:02:08.3]} 19... Rf7 {[%clk 0:00:08.8]} 20. Qh5 {[%clk 0:02:04.7]} 20...
Nf6 {[%clk 0:00:05.2]} 21. Bxf6 {[%clk 0:01:56]} 21... gxf6 {[%clk 0:00:06.1]}
22. Rxc7 {[%clk 0:01:55.2]} 22... Rxc7 {[%clk 0:00:04.7]} 23. Qxe8+ {[%clk
0:01:54.5]} 23... Kg7 {[%clk 0:00:05.3]} 24. Qd8 {[%clk 0:01:48.8]} 24... Rf7
{[%clk 0:00:04.7]} 25. h4 {[%clk 0:01:47.4]} 25... Qxc2 {[%clk 0:00:04.8]} 26.
h5 {[%clk 0:01:46.5]} 26... c4 {[%clk 0:00:04.6]} 27. Rd1 {[%clk 0:01:45.2]}
27... Qf5 {[%clk 0:00:04]} 28. Rd4 {[%clk 0:01:39.9]} 28... c3 {[%clk
0:00:03.9]} 29. g4 {[%clk 0:01:31.7]} 29... c2 {[%clk 0:00:04.8]} 30. gxf5
{[%clk 0:01:29.9]} 30... c1=Q+ {[%clk 0:00:04.6]} 31. Kg2 {[%clk 0:01:26.5]}
31... Kh6 {[%clk 0:00:05.2]} 32. Rg4 {[%clk 0:01:22]} 32... Qc6+ {[%clk
0:00:04.4]} 33. e4 {[%clk 0:01:21]} 33... Qc2 {[%clk 0:00:03.5]} 34. Qg8 {[%clk
0:01:16.2]} 34... Qc4 {[%clk 0:00:01.9]} 35. Rg6+ {[%clk 0:01:14.1]} 35... hxg6
{[%clk 0:00:01.6]} 36. Qxg6# {[%clk 0:01:13.4]} 1-0

[Event "Late-Titled-Tuesday-Blitz-October-10-2023"]
[Site "Chess.com"]
[Date "2023.10.10"]
[Round "2"]
[White "The_Straightforward_Rook"]
[Black "alexrustemov"]
[Result "1/2-1/2"]
[WhiteElo "2557"]
[BlackElo "2845"]
[TimeControl "180+1"]
[EndTime "14:16:35 PDT"]
[Termination "Game drawn by agreement"]

1. d4 {[%clk 0:03:00.9]} 1... d5 {[%clk 0:02:56]} 2. Nf3 {[%clk 0:03:00.7]} 2...
Nf6 {[%clk 0:02:55]} 3. c4 {[%clk 0:03:01.1]} 3... c6 {[%clk 0:02:54.9]} 4. cxd5
{[%clk 0:03:00.4]} 4... cxd5 {[%clk 0:02:54.9]} 5. Nc3 {[%clk 0:03:01.3]} 5...
Nc6 {[%clk 0:02:55.4]} 6. Bf4 {[%clk 0:03:01.8]} 6... a6 {[%clk 0:02:55.5]} 7.
Ne5 {[%clk 0:03:02.2]} 7... Bd7 {[%clk 0:02:50.9]} 8. e3 {[%clk 0:02:59.2]} 8...
e6 {[%clk 0:02:49.9]} 9. Bd3 {[%clk 0:02:55.8]} 9... Be7 {[%clk 0:02:49.6]} 10.
O-O {[%clk 0:02:55]} 10... O-O {[%clk 0:02:49.5]} 11. Rc1 {[%clk 0:02:54.7]}
11... Rc8 {[%clk 0:02:49]} 12. h3 {[%clk 0:02:52.6]} 12... h6 {[%clk 0:02:47.5]}
13. a3 {[%clk 0:02:50.6]} 13... Na5 {[%clk 0:02:46.1]} 14. Bb1 {[%clk
0:02:37.5]} 14... Nc4 {[%clk 0:02:43.9]} 15. Nxc4 {[%clk 0:02:28.5]} 15... dxc4
{[%clk 0:02:42.7]} 16. Qc2 {[%clk 0:02:25.3]} 16... Bc6 {[%clk 0:02:27.8]} 17.
Rcd1 {[%clk 0:02:09.8]} 17... b5 {[%clk 0:02:24.5]} 18. e4 {[%clk 0:02:05.6]}
18... Nh5 {[%clk 0:02:09.4]} 19. e5 {[%clk 0:02:00.2]} 19... f5 {[%clk
0:01:47.3]} 20. exf6 {[%clk 0:01:49.8]} 20... Nxf6 {[%clk 0:01:46.5]} 21. Be5
{[%clk 0:01:44.6]} 21... Rf7 {[%clk 0:01:35]} 22. Rfe1 {[%clk 0:01:24.1]} 22...
Qd7 {[%clk 0:01:32.2]} 23. Qg6 {[%clk 0:01:20.6]} 23... Kf8 {[%clk 0:01:27.1]}
24. Ne4 {[%clk 0:01:17.5]} 24... Nxe4 {[%clk 0:01:24.1]} 25. Bxe4 {[%clk
0:01:18.4]} 25... Bxe4 {[%clk 0:01:18.1]} 26. Rxe4 {[%clk 0:01:18.3]} 26... Bf6
{[%clk 0:01:09.8]} 27. Rde1 {[%clk 0:01:15.3]} 27... Bxe5 {[%clk 0:01:08.5]} 28.
Rxe5 {[%clk 0:01:03.2]} 28... Rf6 {[%clk 0:01:08.4]} 29. Qe4 {[%clk 0:01:00.7]}
29... Rd8 {[%clk 0:01:01.9]} 30. Rxe6 {[%clk 0:00:54.3]} 30... Rxe6 {[%clk
0:01:02]} 31. Qxe6 {[%clk 0:00:55.2]} 31... Qxe6 {[%clk 0:01:02.6]} 32. Rxe6
{[%clk 0:00:56.1]} 32... Rxd4 {[%clk 0:01:03.1]} 33. Rxa6 {[%clk 0:00:56.9]}
33... Rd1+ {[%clk 0:01:02.9]} 34. Kh2 {[%clk 0:00:56.6]} 34... Rd2 {[%clk
0:01:03.6]} 35. a4 {[%clk 0:00:47.7]} 35... Rxb2 {[%clk 0:00:44.3]} 36. axb5
{[%clk 0:00:46.1]} 36... Rxb5 {[%clk 0:00:44.3]} 37. Rc6 {[%clk 0:00:46.6]}
37... Rb4 {[%clk 0:00:42.2]} 38. Rc7 {[%clk 0:00:45.9]} 38... Rb2 {[%clk
0:00:33.3]} 39. Rxc4 {[%clk 0:00:42.8]} 39... Rxf2 {[%clk 0:00:33.2]} 40. Kg3
{[%clk 0:00:43]} 40... Rf6 {[%clk 0:00:32.3]} 41. Rf4 {[%clk 0:00:42.2]} 1/2-1/2

[Event "Late-Titled-Tuesday-Blitz-October-10-2023"]
[Site "Chess.com"]
[Date "2023.10.10"]
[Round "2"]
[White "semchik73"]
[Black "TheBigBoss04"]
[Result "0-1"]
[WhiteElo "2445"]
[BlackElo "2742"]
[TimeControl "180+1"]
[EndTime "14:16:36 PDT"]
[Termination "TheBigBoss04 won by resignation"]

1. Nf3 {[%clk 0:03:00.3]} 1... Nf6 {[%clk 0:02:56.7]} 2. c4 {[%clk 0:03:00.3]}
2... c5 {[%clk 0:02:54.8]} 3. e3 {[%clk 0:03:00.1]} 3... g6 {[%clk 0:02:50.7]}
4. d4 {[%clk 0:03:00.1]} 4... cxd4 {[%clk 0:02:49.8]} 5. exd4 {[%clk 0:03:00.5]}
5... Bg7 {[%clk 0:02:48.3]} 6. Nc3 {[%clk 0:03:00.7]} 6... d5 {[%clk 0:02:47.5]}
7. c5 {[%clk 0:03:00.6]} 7... O-O {[%clk 0:02:45.8]} 8. Be2 {[%clk 0:03:00.7]}
8... Nc6 {[%clk 0:02:43.7]} 9. O-O {[%clk 0:02:56.8]} 9... Ne4 {[%clk 0:02:43]}
10. Qb3 {[%clk 0:02:55.7]} 10... Nxc3 {[%clk 0:02:34.2]} 11. bxc3 {[%clk
0:02:53.9]} 11... b6 {[%clk 0:02:32.4]} 12. cxb6 {[%clk 0:02:50.8]} 12... axb6
{[%clk 0:02:26.2]} 13. Bf4 {[%clk 0:02:44.1]} 13... Ba6 {[%clk 0:02:17.9]} 14.
Bxa6 {[%clk 0:02:41.9]} 14... Rxa6 {[%clk 0:02:18.8]} 15. Qb5 {[%clk 0:02:41.7]}
15... Nb8 {[%clk 0:02:01.7]} 16. Bxb8 {[%clk 0:02:40.1]} 16... Ra5 {[%clk
0:02:02]} 17. Qb4 {[%clk 0:02:28.2]} 17... Qxb8 {[%clk 0:02:02.3]} 18. Qxe7
{[%clk 0:02:28.3]} 18... Qc8 {[%clk 0:02:02.9]} 19. Qb4 {[%clk 0:02:07.8]} 19...
Qc6 {[%clk 0:02:02.1]} 20. Ne5 {[%clk 0:02:00]} 20... Qc7 {[%clk 0:01:53.7]} 21.
f4 {[%clk 0:01:40.2]} 21... Rc8 {[%clk 0:01:47.8]} 22. Rfc1 {[%clk 0:01:36.8]}
22... Bf8 {[%clk 0:01:39.3]} 23. Qb3 {[%clk 0:01:33.1]} 23... Bd6 {[%clk
0:01:33.1]} 24. Rab1 {[%clk 0:01:18.8]} 24... Ra6 {[%clk 0:01:09.8]} 25. Qxd5
{[%clk 0:01:16.7]} 25... Kg7 {[%clk 0:01:06.9]} 26. Nxf7 {[%clk 0:01:11.6]}
26... Bxf4 {[%clk 0:00:58.3]} 27. Rf1 {[%clk 0:01:10.3]} 27... Ra5 {[%clk
0:00:54.4]} 28. Qb3 {[%clk 0:01:03.3]} 28... Bxh2+ {[%clk 0:00:52.7]} 29. Kh1
{[%clk 0:01:02.5]} 29... Rh5 {[%clk 0:00:50.9]} 30. Qxb6 {[%clk 0:00:36.3]}
30... Bf4+ {[%clk 0:00:48.5]} 31. Kg1 {[%clk 0:00:34.9]} 31... Be3+ {[%clk
0:00:46.6]} 32. Rf2 {[%clk 0:00:35.4]} 32... Bxf2+ {[%clk 0:00:42.4]} 33. Kxf2
{[%clk 0:00:35.3]} 33... Qxf7+ {[%clk 0:00:42.5]} 34. Kg1 {[%clk 0:00:35.1]}
34... Rf8 {[%clk 0:00:39.6]} 35. d5 {[%clk 0:00:31.7]} 35... Qxd5 {[%clk
0:00:35.9]} 36. Qc7+ {[%clk 0:00:30.7]} 36... Rf7 {[%clk 0:00:35.7]} 37. Qg3
{[%clk 0:00:30]} 37... Qc5+ {[%clk 0:00:36]} 0-1